Workbook

Sheet Monthly Comparison
A1: All Crown Stores - Actual
A2: 0 | F2: =Data!A4 -> March
B3: Income | F3: =SUM(F19,F35,F51,F67) -> 0
B4: COGS (Materials & Shipping) | F4: =SUM(F20,F36,F52,F68) -> 0 | G4: =F4/$F$3 -> 
B5: Gross Profit | F5: 0 | G5: =F5/$F$3 -> 
C6: Franchise Fees | F6: 0
C7: Marketing & Advertising | F7: 0
C8: Merchant Fees | F8: 0
C9: Payroll | F9: 0
C10: Rent | F10: 0
C11: Utilities | F11: 0
C12: Other Expenses | F12: 0
B13: Total Expenses | F13: 0
B14: Net Income | F14: 0
A17: =IF(B19="","",Data!G2 & " Actual Data") -> 
F18: =IF(B19="","",Data!A4) -> 
G20: =IF($F$19="","",F20/$F$19) -> 
G21: =IF($F$19="","",F21/$F$19) -> 
A33: =IF(B35="","",Data!G4 & " Actual Data") -> 
F34: =IF('Monthly Comparison'!B35="","",Data!$A$4) -> 
G36: =IF($F$35="","",F36/$F$35) -> 
G37: =IF($F$35="","",F37/$F$35) -> 
A49: =IF(B51="","",Data!G6 & " Actual Data") -> 
F50: =IF(B51="","",Data!A4) -> 
G52: =IF($F$51="","",F52/$F$51) -> 
G53: =IF($F$51="","",F53/$F$51) -> 
A65: =IF(B67="","",Data!G8 & " Actual Data") -> 
F66: =IF(B67="","",Data!A4) -> 
G68: =IF($F$67="","",F68/$F$67) -> 
G69: =IF($F$67="","",F69/$F$67) -> 

Sheet Quarter Comparison
A1: All Crown Stores - Actual | O1: All Crown Stores - Projected
A2: 0 | D2: =Data!H2 -> Q2 | F2: =Data!H4 -> Q3 | H2: =Data!H6 -> Q4 | J2: =Data!H8 -> Q1 | L2: TOTAL | R2: =Data!H2 -> Q2 | T2: =Data!H4 -> Q3 | V2: =Data!H6 -> Q4 | X2: =Data!H8 -> Q1 | Z2: TOTAL
A3: Income | D3: =SUM(D19,D35,D51,D67) -> 0 | F3: =SUM(F19,F35,F51,F67) -> 0 | H3: 0 | J3: 0 | L3: =SUM(D3,F3,H3,J3) -> 0 | O3: Income | Z3: =SUM(X3,V3,T3,R3) -> 0
A4: COGS (Materials & Shipping) | D4: =SUM(D20,D36,D52,D68) -> 0 | E4: =(D4/$D$3) ->  | F4: 0 | G4: =F4/F3 ->  | H4: =SUM(H20,H36,H52,H68) -> 0 | I4: =H4/H3 ->  | J4: =SUM(J20,J36,J52,J68) -> 0 | K4: =J4/J3 ->  | L4: =SUM(D4,F4,H4,J4) -> 0 | M4: =L4/L3 ->  | O4: COGS (Materials & Shipping) | S4: =R4/$R$3 ->  | U4: =T4/$T$3 ->  | W4: =V4/$V$3 ->  | Y4: =X4/$X$3 ->  | Z4: =SUM(X4,V4,T4,R4) -> 0 | AA4: =Z4/$Z$3 -> 
A5: Gross Profit | D5: 0 | E5: =D5/$D$3 ->  | F5: 0 | G5: =F5/F3 ->  | H5: =SUM(H21,H37,H53,H69) -> 0 | I5: =H5/H3 ->  | J5: =SUM(J21,J37,J53,J69) -> 0 | K5: =J5/J3 ->  | L5: 0 | M5: =L5/L3 ->  | O5: Gross Profit | S5: =R5/$R$3 ->  | U5: =T5/$T$3 ->  | W5: =V5/$V$3 ->  | Y5: =X5/$X$3 ->  | Z5: 0 | AA5: =Z5/$Z$3 -> 
B6: Franchise Fees | D6: 0 | F6: 0 | G6: =F6/F3 ->  | H6: =SUM(H22,H38,H54,H70) -> 0 | I6: =H6/H3 ->  | J6: =SUM(J22,J38,J54,J70) -> 0 | K6: =J6/J3 ->  | L6: 0 | M6: =L6/L3 ->  | P6: Franchise Fees | Z6: 0
B7: Marketing & Advertising | D7: 0 | F7: 0 | G7: =F7/F3 ->  | H7: =SUM(H23,H39,H55,H71) -> 0 | I7: =H7/H3 ->  | J7: =SUM(J23,J39,J55,J71) -> 0 | K7: =J7/J3 ->  | L7: 0 | M7: =L7/L3 ->  | P7: Marketing & Advertising | Z7: 0
B8: Merchant Fees | D8: 0 | F8: 0 | G8: =F8/F3 ->  | H8: =SUM(H24,H40,H56,H72) -> 0 | I8: =H8/H3 ->  | J8: =SUM(J24,J40,J56,J72) -> 0 | K8: =J8/J3 ->  | L8: 0 | M8: =L8/L3 ->  | P8: Merchant Fees | Z8: 0
B9: Payroll | D9: 0 | F9: 0 | G9: =F9/F3 ->  | H9: =SUM(H25,H41,H57,H73) -> 0 | I9: =H9/H3 ->  | J9: =SUM(J25,J41,J57,J73) -> 0 | K9: =J9/J3 ->  | L9: 0 | M9: =L9/L3 ->  | P9: Payroll | Z9: 0
B10: Rent | D10: 0 | F10: 0 | G10: =F10/F3 ->  | H10: =SUM(H26,H42,H58,H74) -> 0 | I10: =H10/H3 ->  | J10: =SUM(J26,J42,J58,J74) -> 0 | K10: =J10/J3 ->  | L10: 0 | M10: =L10/L3 ->  | P10: Rent | Z10: 0
B11: Utilities | D11: 0 | F11: 0 | G11: =F11/F3 ->  | H11: =SUM(H27,H43,H59,H75) -> 0 | I11: =H11/H3 ->  | J11: =SUM(J27,J43,J59,J75) -> 0 | K11: =J11/J3 ->  | L11: 0 | M11: =L11/L3 ->  | P11: Utilities | Z11: 0
B12: Other Expenses | D12: 0 | F12: 0 | G12: =F12/F3 ->  | H12: =SUM(H28,H44,H60,H76) -> 0 | I12: =H12/H3 ->  | J12: =SUM(J28,J44,J60,J76) -> 0 | K12: =J12/J3 ->  | L12: 0 | M12: =L12/L3 ->  | P12: Other Expenses | Z12: 0
A13: Total Expenses | D13: 0 | F13: 0 | G13: =F13/F3 ->  | H13: =SUM(H29,H45,H61,H77) -> 0 | I13: =H13/H3 ->  | J13: =SUM(J29,J45,J61,J77) -> 0 | K13: =J13/J3 ->  | L13: 0 | M13: =L13/L3 ->  | O13: Total Expenses | Z13: 0
A14: Net Income | D14: 0 | F14: 0 | G14: =F14/F3 ->  | H14: =SUM(H30,H46,H62,H78) -> 0 | I14: =H14/H3 ->  | J14: =SUM(J30,J46,J62,J78) -> 0 | K14: =J14/J3 ->  | L14: 0 | M14: =L14/L3 ->  | O14: Net Income | Z14: 0
A17: =IF(A19="","",Data!G2 & " Actual Data") ->  | O17: =IF(A19="","",Data!G2 & " Projected Data") -> 
D18: =D2 -> Q2 | F18: =F2 -> Q3 | H18: =H2 -> Q4 | J18: =J2 -> Q1 | L18: TOTAL | R18: =D18 -> Q2 | T18: =F18 -> Q3 | V18: Q4 | X18: Q1 | Z18: TOTAL
L19: =IF($D$19="","",SUM(D19,F19,H19,J19)) ->  | O19: =IF(A19="","","Income") -> 
E20: =IF($D$19="","",D20/$D$19) ->  | G20: =IF($F$19="","",F20/$F$19) ->  | I20: =IF($H$19="","",H20/$H$19) ->  | K20: =IF($J$19="","",J20/$J$19) ->  | L20: =IF($D$19="","",SUM(D20,F20,H20,J20)) ->  | M20: =IF($L$19="","",L20/$L$19) ->  | O20: =IF(A19="","","COGS (Materials & Shipping)") -> 
E21: =IF($D$19="","",D21/$D$19) ->  | G21: =IF($F$19="","",F21/$F$19) ->  | I21: =IF($H$19="","",H21/$H$19) ->  | K21: =IF($J$19="","",J21/$J$19) ->  | M21: =IF($L$19="","",L21/$L$19) ->  | O21: =IF(A19="","","Gross Profit") -> 
P22: =IF(A19="","","Franchise Fees") -> 
P23: =IF(A19="","","Marketing & Advertising") -> 
P24: =IF(A19="","","Merchant Fees") -> 
P25: =IF(A19="","","Payroll") -> 
P26: =IF(A19="","","Rent") -> 
P27: =IF(A19="","","Utilities") -> 
P28: =IF(A19="","","Other Expenses") -> 
O29: =IF(A19="","","Total Expenses") -> 
O30: =IF(A19="","","Net Income") -> 
A33: =IF(A35="","",Data!G4 & " Actual Data") ->  | O33: =IF(A35="","",Data!G4 & " Projected Data") -> 
D34: =IF(A35="","",D18) ->  | F34: =IF(A35="","",F18) ->  | H34: =IF(A35="","",H18) ->  | J34: =IF(A35="","",J18) ->  | L34: =IF(A35="","",L18) ->  | R34: =IF(A35="","",R18) ->  | T34: =IF(A35="","",T18) ->  | V34: =IF(A35="","",V18) ->  | X34: =IF(A35="","",X18) ->  | Z34: =IF(A35="","",Z18) -> 
L35: =IF($D$35="","",SUM(D35,F35,H35,J35)) ->  | O35: =IF(A35="","","Income") -> 
E36: =IF($D$35="","",D36/$D$35) ->  | G36: =IF($F$35 = "","",F36/$F$35) ->  | I36: =IF($H$35="","",H36/$H$35) ->  | K36: =IF($J$35 = "","",J36/$J$35) ->  | L36: =IF($D$35="","",SUM(D36,F36,H36,J36)) ->  | M36: =IF($D$35="","",L36/$L$35) ->  | O36: =IF(A35="","","COGS (Materials & Shipping)") -> 
E37: =IF($D$35="","",D37/$D$35) ->  | G37: =IF($F$35 = "","",F37/$F$35) ->  | I37: =IF($H$35="","",H37/$H$35) ->  | K37: =IF($J$35 = "","",J37/$J$35) ->  | M37: =IF($D$35="","",L37/$L$35) ->  | O37: =IF(A35="","","Gross Profit") -> 
P38: =IF(A35="","","Franchise Fees") -> 
P39: =IF(A35="","","Marketing & Advertising") -> 
P40: =IF(A35="","","Merchant Fees") -> 
P41: =IF(A35="","","Payroll") -> 
P42: =IF(A35="","","Rent") -> 
P43: =IF(A35="","","Utilities") -> 
P44: =IF(A35="","","Other Expenses") -> 
O45: =IF(A35="","","Total Expenses") -> 
O46: =IF(A35="","","Net Income") -> 
A49: =IF(A51="","",Data!G6 & " Actual Data") ->  | O49: =IF(A51="","",Data!G6 & " Projected Data") -> 
D50: =IF($A$51="","",D34) ->  | F50: =IF($A$51="","",F34) ->  | R50: =IF(A51="","",R34) ->  | T50: =IF(A51="","",T34) ->  | V50: =IF(A51="","",V34) ->  | X50: =IF(A51="","",X34) ->  | Z50: =IF(A51="","",Z34) -> 
L51: =IF($D$51="","",SUM(D51,F51,H51,J51)) ->  | O51: =IF(A51="","","Income") -> 
E52: =IF($D$51="","",D52/$D$51) ->  | G52: =IF($F$51="","",F52/$F$51) ->  | I52: =IF($H$51="","",H52/$H$51) ->  | K52: =IF($J$51="","",J52/$J$51) ->  | L52: =IF($D$51="","",SUM(D52,F52,H52,J52)) ->  | M52: =IF($L$51="","",L52/$L$51) ->  | O52: =IF(A51="","","COGS (Materials & Shipping)") -> 
E53: =IF($D$51="","",D53/$D$51) ->  | G53: =IF($F$51="","",F53/$F$51) ->  | I53: =IF($H$51="","",H53/$H$51) ->  | K53: =IF($J$51="","",J53/$J$51) ->  | M53: =IF($L$51="","",L53/$L$51) ->  | O53: =IF(A51="","","Gross Profit") -> 
P54: =IF(A51="","","Franchise Fees") -> 
P55: =IF(A51="","","Marketing & Advertising") -> 
P56: =IF(A51="","","Merchant Fees") -> 
P57: =IF(A51="","","Payroll") -> 
P58: =IF(A51="","","Rent") -> 
P59: =IF(A51="","","Utilities") -> 
P60: =IF(A51="","","Other Expenses") -> 
O61: =IF(A51="","","Total Expenses") -> 
O62: =IF(A51="","","Net Income") -> 
A65: =IF(A67="","",Data!G8 & " Actual Data") ->  | O65: =IF(A67="","",Data!G8 & " Projected Data") -> 
D66: =IF($A$67="","",D50) ->  | F66: =IF($A$67="","",F50) ->  | R66: =IF(A67="","",R50) ->  | T66: =IF(A67="","",T50) ->  | V66: =IF(A67="","",V50) ->  | X66: =IF(A67="","",X50) ->  | Z66: =IF(A67="","",Z50) -> 
L67: =IF(D67="","",SUM(D67,F67,H67,J67)) ->  | O67: =IF(A67="","","Income") -> 
E68: =IF($D$67="","",D68/$D$67) ->  | G68: =IF($F$67="","",F68/$F$67) ->  | I68: =IF($H$67="","",H68/$H$67) ->  | K68: =IF($J$67="","",J68/$J$67) ->  | L68: =IF(D68="","",SUM(D68,F68,H68,J68)) ->  | M68: =IF($L$67="","",L68/$L$67) ->  | O68: =IF(A67="","","COGS (Materials & Shipping)") -> 
E69: =IF($D$67="","",D69/$D$67) ->  | G69: =IF($F$67="","",F69/$F$67) ->  | I69: =IF($H$67="","",H69/$H$67) ->  | K69: =IF($J$67="","",J69/$J$67) ->  | M69: =IF($L$67="","",L69/$L$67) ->  | O69: =IF(A67="","","Gross Profit") -> 
P70: =IF(A67="","","Franchise Fees") -> 
P71: =IF(A67="","","Marketing & Advertising") -> 
P72: =IF(A67="","","Merchant Fees") -> 
P73: =IF(A67="","","Payroll") -> 
P74: =IF(A67="","","Rent") -> 
P75: =IF(A67="","","Utilities") -> 
P76: =IF(A67="","","Other Expenses") -> 
O77: =IF(A67="","","Total Expenses") -> 
O78: =IF(A67="","","Net Income") -> 

Sheet QUARTER (hidden)
B1: =TODAY() -> 2015-12-08
A2: ACTUAL - BASELINE P&L | D2: Q3'14 | F2: Q4'14 | H2: Q1'15 | J2: Q2'15 | L2: TOTAL | N2: Benchmark
A3: Income | D3: 84401.81 | F3: 108152.57 | H3: 136924.12 | J3: 151274.73 | L3: 480753.23
A4: COGS (Materials & Shipping) | D4: 24460.57 | E4: =D4/D3 -> 0.289810965 | F4: 34274.33 | G4: =F4/F3 -> 0.3169072173 | H4: 50489.5 | I4: =H4/H3 -> 0.3687407303 | J4: 52123.12 | K4: =J4/J3 -> 0.3445593325 | L4: 161347.52 | M4: =L4/L3 -> 0.3356140114 | N4: 0.38
A5: Gross Profit | D5: 59941.24 | E5: =D5/D3 -> 0.710189035 | F5: 73878.24 | G5: =F5/F3 -> 0.6830927827 | H5: 86434.62 | I5: =H5/H3 -> 0.6312592697 | J5: 99151.61 | K5: =J5/J3 -> 0.6554406675 | L5: 319405.71 | M5: =L5/L3 -> 0.6643859886 | N5: 0.62
B6: Franchise Fees | D6: 6147.82 | E6: =D6/D3 -> 0.07283990711 | F6: 5237.48 | G6: =F6/F3 -> 0.0484267734 | H6: 5577.83 | I6: =H6/H3 -> 0.04073665034 | J6: 7995.28 | K6: =J6/J3 -> 0.05285271373 | L6: 24958.41 | M6: =L6/L3 -> 0.05191522062 | N6: 0.05
B7: Marketing & Advertising | D7: 773.97 | E7: =D7/D3 -> 0.009170064007 | F7: 323 | G7: =F7/F3 -> 0.002986521726 | H7: 2251.76 | I7: =H7/H3 -> 0.01644531292 | J7: 2541.8 | K7: =J7/J3 -> 0.01680254197 | L7: 5890.53 | M7: =L7/L3 -> 0.01225271019 | N7: 0.02
B8: Merchant Fees | D8: 1419.72 | E8: =D8/D3 -> 0.01682096628 | F8: 1739.52 | G8: =F8/F3 -> 0.01608394512 | H8: 1425.45 | I8: =H8/H3 -> 0.01041051058 | J8: 2268.99 | K8: =J8/J3 -> 0.01499913436 | L8: 6853.68 | M8: =L8/L3 -> 0.01425612887 | N8: 0.007
B9: Payroll | D9: 32734.23 | E9: =D9/D3 -> 0.3878380096 | F9: 36905.58 | G9: =F9/F3 -> 0.3412362739 | H9: 31588.76 | I9: =H9/H3 -> 0.2307026695 | J9: 37152.15 | K9: =J9/J3 -> 0.245593894 | L9: 138380.72 | M9: =L9/L3 -> 0.2878414774 | N9: 16-22%
B10: Rent | D10: 8529.48 | E10: =D10/D3 -> 0.1010580223 | F10: 8529.48 | G10: =F10/F3 -> 0.07886525489 | H10: 9840.72 | I10: =H10/H3 -> 0.07186987946 | J10: 8821.32 | K10: =J10/J3 -> 0.0583132424 | L10: 35721 | M10: =L10/L3 -> 0.07430215289 | N10: 0.063 | Q10: COUNTER MUST = 0
B11: Utilities | D11: 2069.48 | E11: =D11/D3 -> 0.02451937938 | F11: 2349.25 | G11: =F11/F3 -> 0.02172162899 | H11: 2381.34 | I11: =H11/H3 -> 0.0173916765 | J11: 2139.62 | K11: =J11/J3 -> 0.01414393534 | L11: 8939.69 | M11: =L11/L3 -> 0.01859517408 | N11: 0.015
B12: Other Expenses | D12: =D13-D6-D7-D8-D9-D10-D11 -> 4332.91 | E12: =D12/D3 -> 0.05133669527 | F12: =F13-F6-F7-F8-F9-F10-F11 -> 4381.87 | G12: =F12/F3 -> 0.04051563453 | H12: =H13-H6-H7-H8-H9-H10-H11 -> 6376.41 | I12: =H12/H3 -> 0.04656893176 | J12: =J13-J6-J7-J8-J9-J10-J11 -> 10635.35 | K12: =J12/J3 -> 0.0703048685 | L12: =L13-L6-L7-L8-L9-L10-L11 -> 25726.54 | M12: =L12/L3 -> 0.0535129842
A13: Total Expenses | D13: 56007.61 | E13: =D13/D3 -> 0.663583044 | F13: 59466.18 | G13: =F13/F3 -> 0.5498360326 | H13: 59442.27 | I13: =H13/H3 -> 0.434125631 | J13: 71554.51 | K13: =J13/J3 -> 0.4730103303 | L13: 246470.57 | M13: =L13/L3 -> 0.5126758483 | N13: 0.4
A14: Net Income | D14: 3094.42 | E14: =D14/D3 -> 0.03666295782 | F14: 14422.1 | G14: =F14/F3 -> 0.133349582 | H14: 27500.58 | I14: =H14/H3 -> 0.2008454025 | J14: 27603.58 | K14: =J14/J3 -> 0.1824731731 | L14: 72620.68 | M14: =L14/L3 -> 0.1510560418 | N14: 0.22
D16: 0.05 | F16: 0.05 | H16: 0.1 | J16: 0.1 | N16: < % of Sales Growth YoY
A17: PROJECTED - Austin P&L | D17: Q3'15 | F17: Q4'15 | H17: Q1'16 | J17: Q2'16 | L17: TOTAL
A18: Income | D18: =D3*(1+D16) -> 88621.9005 | F18: =F3*(1+F16) -> 113560.1985 | H18: =H3*(1+H16) -> 150616.532 | J18: =J3*(1+J16) -> 166402.203 | L18: =D18+F18+H18+J18 -> 519200.834
A19: COGS (Materials & Shipping) | D19: =D18*$M$19 -> 29245.22717 | E19: =D19/D18 -> 0.33 | F19: =F18*$M$19 -> 37474.86551 | G19: =F19/F18 -> 0.33 | H19: =H18*$M$19 -> 49703.45556 | I19: =H19/H18 -> 0.33 | J19: =J18*$M$19 -> 54912.72699 | K19: =J19/J18 -> 0.33 | L19: =L18*$M$19 -> 171336.2752 | M19: 0.33
A20: Gross Profit | D20: =D18-D19 -> 59376.67333 | E20: =D20/D18 -> 0.67 | F20: =F18-F19 -> 76085.333 | G20: =F20/F18 -> 0.67 | H20: =H18-H19 -> 100913.0764 | I20: =H20/H18 -> 0.67 | J20: =J18-J19 -> 111489.476 | K20: =J20/J18 -> 0.67 | L20: =L18-L19 -> 347864.5588 | M20: 0.67
B21: Franchise Fees | D21: =D18*$M$21 -> 4431.095025 | E21: =D21/D18 -> 0.05 | F21: =F18*$M$21 -> 5678.009925 | G21: =F21/F18 -> 0.05 | H21: =H18*$M$21 -> 7530.8266 | I21: =H21/H18 -> 0.05 | J21: =J18*$M$21 -> 8320.11015 | K21: =J21/J18 -> 0.05 | L21: =L18*$M$21 -> 25960.0417 | M21: 0.05
B22: Marketing & Advertising | D22: =D18*$M$22 -> 1772.43801 | E22: =D22/D18 -> 0.02 | F22: =F18*$M$22 -> 2271.20397 | G22: =F22/F18 -> 0.02 | H22: =H18*$M$22 -> 3012.33064 | I22: =H22/H18 -> 0.02 | J22: =J18*$M$22 -> 3328.04406 | K22: =J22/J18 -> 0.02 | L22: =L18*$M$22 -> 10384.01668 | M22: 0.02
B23: Merchant Fees | D23: =D18*$M$23 -> 1240.706607 | E23: =D23/D18 -> 0.014 | F23: =F18*$M$23 -> 1589.842779 | G23: =F23/F18 -> 0.014 | H23: =H18*$M$23 -> 2108.631448 | I23: =H23/H18 -> 0.014 | J23: =J18*$M$23 -> 2329.630842 | K23: =J23/J18 -> 0.014 | L23: =L18*$M$23 -> 7268.811676 | M23: 0.014
B24: Payroll | D24: 24934 | E24: =D24/D18 -> 0.281352576 | F24: 24934 | G24: =F24/F18 -> 0.2195663651 | H24: 33358 | I24: =H24/H18 -> 0.2214763516 | J24: 33358 | K24: =J24/J18 -> 0.200466096 | L24: =D24+F24+H24+J24 -> 116584 | M24: =L24/L18 -> 0.2245450939 | N24: (Based on Raun PT, Carl 40, Eli 40, John 40, Temp 20 starting Q1'16)
B25: Rent | D25: 8821.32 | E25: =D25/D18 -> 0.09953882675 | F25: 9141.78 | G25: =F25/F18 -> 0.08050162047 | H25: 9141.78 | I25: =H25/H18 -> 0.06069572761 | J25: 9141.78 | K25: =J25/J18 -> 0.0549378544 | L25: =D25+F25+H25+J25 -> 36246.66 | M25: =L25/L18 -> 0.06981240712
B26: Utilities | D26: =D11 -> 2069.48 | E26: =D26/D18 -> 0.02335178989 | F26: =F11 -> 2349.25 | G26: =F26/F18 -> 0.02068726571 | H26: =H11 -> 2381.34 | I26: =H26/H18 -> 0.015810615 | J26: =J11 -> 2139.62 | K26: =J26/J18 -> 0.01285812304 | L26: =L11 -> 8939.69 | M26: =L26/L18 -> 0.01721817342
B27: Other Expenses | D27: =D18*M27 -> 4431.095025 | E27: =D27/D18 -> 0.05 | F27: =M27*F18 -> 5678.009925 | G27: =F27/F18 -> 0.05 | H27: =M27*H18 -> 7530.8266 | I27: =H27/H18 -> 0.05 | J27: =M27*J18 -> 8320.11015 | K27: =J27/J18 -> 0.05 | L27: =D27+F27+H27+J27 -> 25960.0417 | M27: 0.05
A28: Total Expenses | D28: =SUM(D21:D27) -> 47700.13467 | E28: =D28/D18 -> 0.5382431927 | F28: =SUM(F21:F27) -> 51642.0966 | G28: =F28/F18 -> 0.4547552512 | H28: =SUM(H21:H27) -> 65063.73529 | I28: =H28/H18 -> 0.4319826942 | J28: =SUM(J21:J27) -> 66937.2952 | K28: =J28/J18 -> 0.4022620734 | L28: =SUM(L21:L27) -> 231343.2618 | M28: =L28/L18 -> 0.4455756744
A29: Net Income | D29: =D20-D28 -> 11676.53867 | E29: =D29/D18 -> 0.1317568073 | F29: =F20-F28 -> 24443.2364 | G29: =F29/F18 -> 0.2152447488 | H29: =H20-H28 -> 35849.34115 | I29: =H29/H18 -> 0.2380173058 | J29: =J20-J28 -> 44552.18081 | K29: =J29/J18 -> 0.2677379266 | L29: =L20-L28 -> 116521.297 | M29: =L29/L18 -> 0.2244243256
D31: 0.1 | F31: 0.25 | H31: 0.35 | J31: 0.45 | N31: < % of Austin Store Sales
A32: PROJECTED - San Marcos P&L | D32: Q3'15 | F32: Q4'15 | H32: Q1'16 | J32: Q2'16 | L32: TOTAL
A33: Income | D33: =D18*D31 -> 8862.19005 | F33: =F18*F31 -> 28390.04963 | H33: =H18*H31 -> 52715.7862 | J33: =J18*J31 -> 74880.99135 | L33: =D33+F33+H33+J33 -> 164849.0172
A34: COGS (Materials & Shipping) | D34: =D33*M34 -> 2924.522717 | E34: =D34/D33 -> 0.33 | F34: =M34*F33 -> 9368.716376 | G34: =F34/F33 -> 0.33 | H34: =M34*H33 -> 17396.20945 | I34: =H34/H33 -> 0.33 | J34: =M34*J33 -> 24710.72715 | K34: =J34/J33 -> 0.33 | L34: =M34*L33 -> 54400.17568 | M34: 0.33
A35: Gross Profit | D35: =D33-D34 -> 5937.667334 | E35: =D35/D33 -> 0.67 | F35: =F33-F34 -> 19021.33325 | G35: =F35/F33 -> 0.67 | H35: =H33-H34 -> 35319.57675 | I35: =H35/H33 -> 0.67 | J35: =J33-J34 -> 50170.2642 | K35: =J35/J33 -> 0.67 | L35: =L33-L34 -> 110448.8415 | M35: 0.67
B36: Franchise Fees | D36: =M36*D33 -> 443.1095025 | E36: =D36/D33 -> 0.05 | F36: =F33*M36 -> 1419.502481 | G36: =F36/F33 -> 0.05 | H36: =H33*M36 -> 2635.78931 | I36: =H36/H33 -> 0.05 | J36: =J33*M36 -> 3744.049568 | K36: =J36/J33 -> 0.05 | L36: =M36*L33 -> 8242.450861 | M36: 0.05
B37: Marketing & Advertising | D37: =M37*D33 -> 177.243801 | E37: =D37/D33 -> 0.02 | F37: =F33*M37 -> 567.8009925 | G37: =F37/F33 -> 0.02 | H37: =H33*M37 -> 1054.315724 | I37: =H37/H33 -> 0.02 | J37: =J33*M37 -> 1497.619827 | K37: =J37/J33 -> 0.02 | L37: =M37*L33 -> 3296.980345 | M37: 0.02
B38: Merchant Fees | D38: =M38*D33 -> 124.0706607 | E38: =D38/D33 -> 0.014 | F38: =F33*M38 -> 397.4606948 | G38: =F38/F33 -> 0.014 | H38: =H33*M38 -> 738.0210068 | I38: =H38/H33 -> 0.014 | J38: =J33*M38 -> 1048.333879 | K38: =J38/J33 -> 0.014 | L38: =M38*L33 -> 2307.886241 | M38: 0.014
B39: Payroll | D39: 17831 | E39: =D39/D33 -> 2.012030875 | F39: 17831 | G39: =F39/F33 -> 0.6280721674 | H39: 26255 | I39: =H39/H33 -> 0.4980481539 | J39: 26255 | K39: =J39/J33 -> 0.350623029 | L39: =D39+F39+H39+J39 -> 88172 | M39: =L39/L33 -> 0.5348651844 | N39: (Based on Dmitri FT, Tiara 40, Darius 40, Temp 20 starting Q1'16)
B40: Rent | D40: 512.34 | E40: =D40/D33 -> 0.05781189493 | F40: 1537.02 | G40: =F40/F33 -> 0.0541393911 | H40: 1537.02 | I40: =H40/H33 -> 0.02915673104 | J40: 7880.76 | K40: =J40/J33 -> 0.105243799 | L40: =D40+F40+H40+J40 -> 11467.14 | M40: =L40/L33 -> 0.0695614702
B41: Utilities | D41: 783 | E41: =D41/D33 -> 0.08835287842 | F41: 2349 | G41: =F41/F33 -> 0.08274025692 | H41: 2381 | I41: =H41/H33 -> 0.04516673603 | J41: 2140 | K41: =J41/J33 -> 0.02857868147 | L41: =D41+F41+H41+J41 -> 7653 | M41: =L41/L33 -> 0.0464242986
B42: Other Expenses | D42: =M42*D33 -> 443.1095025 | E42: =D42/D33 -> 0.05 | F42: =M42*F33 -> 1419.502481 | G42: =F42/F33 -> 0.05 | H42: =M42*H33 -> 2635.78931 | I42: =H42/H33 -> 0.05 | J42: =M42*J33 -> 3744.049568 | K42: =J42/J33 -> 0.05 | L42: =M42*L33 -> 8242.450861 | M42: 0.05
A43: Total Expenses | D43: =SUM(D36:D42) -> 20313.87347 | E43: =D43/D33 -> 2.292195648 | F43: =SUM(F36:F42) -> 25521.28665 | G43: =F43/F33 -> 0.8989518154 | H43: =SUM(H36:H42) -> 37236.93535 | I43: =H43/H33 -> 0.706371621 | J43: =SUM(J36:J42) -> 46309.81284 | K43: =J43/J33 -> 0.6184455094 | L43: =SUM(L36:L42) -> 129381.9083 | M43: =L43/L33 -> 0.7848509532
A44: Net Income | D44: =D35-D43 -> -14376.20613 | E44: =D44/D33 -> -1.622195648 | F44: =F35-F43 -> -6499.953401 | G44: =F44/F33 -> -0.2289518154 | H44: =H35-H43 -> -1917.358597 | I44: =H44/H33 -> -0.03637162101 | J44: =J35-J43 -> 3860.451364 | K44: =J44/J33 -> 0.05155449059 | L44: =L35-L43 -> -18933.06677 | M44: =L44/L33 -> -0.1148509532
A46: PROJECTED - Company P&L | D46: Q3'15 | F46: Q4'15 | H46: Q1'16 | J46: Q2'16 | L46: TOTAL
A47: Income | D47: =D18+D33 -> 97484.09055 | F47: =F18+F33 -> 141950.2481 | H47: =H18+H33 -> 203332.3182 | J47: =J18+J33 -> 241283.1944 | L47: =D47+F47+H47+J47 -> 684049.8512 | N47: =(L47-L3)/L3 -> 0.422871046 | O47: Growth from 2 stores & better utilization of employees
A48: COGS (Materials & Shipping) | D48: 32169.74988 | E48: =D48/D47 -> 0.33 | F48: 46843.58188 | G48: =F48/F47 -> 0.33 | H48: 67099.66501 | I48: =H48/H47 -> 0.33 | J48: 79623.45414 | K48: =J48/J47 -> 0.33 | L48: =L19+L34 -> 225736.4509 | M48: =L48/L47 -> 0.33
A49: Gross Profit | D49: 65314.34067 | E49: =D49/D47 -> 0.67 | F49: 95106.66624 | G49: =F49/F47 -> 0.67 | H49: 136232.6532 | I49: =H49/H47 -> 0.67 | J49: 161659.7402 | K49: =J49/J47 -> 0.67 | L49: 458313.4003 | M49: =L49/L47 -> 0.67
B50: Franchise Fees | D50: 4874.204528 | E50: =D50/D47 -> 0.05 | F50: 7097.512406 | G50: =F50/F47 -> 0.05 | H50: 10166.61591 | I50: =H50/H47 -> 0.05 | J50: 12064.15972 | K50: =J50/J47 -> 0.05 | L50: 34202.49256 | M50: =L50/L47 -> 0.05
B51: Marketing & Advertising | D51: 1949.681811 | E51: =D51/D47 -> 0.02 | F51: 2839.004963 | G51: =F51/F47 -> 0.02 | H51: 4066.646364 | I51: =H51/H47 -> 0.02 | J51: 4825.663887 | K51: =J51/J47 -> 0.02 | L51: 13680.99702 | M51: =L51/L47 -> 0.02
B52: Merchant Fees | D52: 1364.777268 | E52: =D52/D47 -> 0.014 | F52: 1987.303474 | G52: =F52/F47 -> 0.014 | H52: 2846.652455 | I52: =H52/H47 -> 0.014 | J52: 3377.964721 | K52: =J52/J47 -> 0.014 | L52: 9576.697917 | M52: =L52/L47 -> 0.014
B53: Payroll | D53: 42765 | E53: =D53/D47 -> 0.4386869669 | F53: 42765 | G53: =F53/F47 -> 0.3012675255 | H53: 59613 | I53: =H53/H47 -> 0.2931801522 | J53: 59613 | K53: =J53/J47 -> 0.2470665235 | L53: 204756 | M53: =L53/L47 -> 0.2993290615
B54: Rent | D54: 9333.66 | E54: =D54/D47 -> 0.09574546931 | F54: 10678.8 | G54: =F54/F47 -> 0.0752291746 | H54: 10678.8 | I54: =H54/H47 -> 0.05251895072 | J54: 17022.54 | K54: =J54/J47 -> 0.07055004409 | L54: 47713.8 | M54: =L54/L47 -> 0.06975193389
B55: Utilities | D55: 2852.48 | E55: =D55/D47 -> 0.02926097975 | F55: 4698.25 | G55: =F55/F47 -> 0.03309786395 | H55: 4762.34 | I55: =H55/H47 -> 0.02342146119 | J55: 4279.62 | K55: =J55/J47 -> 0.01773691703 | L55: 16592.69 | M55: =L55/L47 -> 0.02425655085
B56: Other Expenses | D56: 4874.204528 | E56: =D56/D47 -> 0.05 | F56: 7097.512406 | G56: =F56/F47 -> 0.05 | H56: 10166.61591 | I56: =H56/H47 -> 0.05 | J56: 12064.15972 | K56: =J56/J47 -> 0.05 | L56: 34202.49256 | M56: =L56/L47 -> 0.05
A57: Total Expenses | D57: 68014.00813 | E57: =D57/D47 -> 0.6976934159 | F57: 77163.38325 | G57: =F57/F47 -> 0.5435945641 | H57: 102300.6706 | I57: =H57/H47 -> 0.5031205641 | J57: 113247.108 | K57: =J57/J47 -> 0.4693534846 | L57: 360725.1701 | M57: =L57/L47 -> 0.5273375463
A58: Net Income | D58: -2699.667465 | E58: =D58/D47 -> -0.02769341592 | F58: 17943.283 | G58: =F58/F47 -> 0.1264054359 | H58: 33931.98256 | I58: =H58/H47 -> 0.1668794359 | J58: 48412.63217 | K58: =J58/J47 -> 0.2006465154 | L58: 97588.23026 | M58: =L58/L47 -> 0.1426624537
D60: Comb Bonus | F60: Split Bonus | H60: Split Bonus | J60: Split Bonus | L60: TOTAL
A61: Employee Bonus (Prorated @ 10%) | D61: =D58*0.1 -> -269.9667465 | F61: =F58*0.1 -> 1794.3283 | H61: =H58*0.1 -> 3393.198256 | J61: =J58*0.1 -> 4841.263217 | L61: =L58*0.1 -> 9758.823026
A63: Prorated = # Hours worked in Quarter X Hourly Pay Rate / All Employees # Hours worked in Quarter X Hourly Rates
A65: Example: (520 X $10 = 5200 / 2600 X $12 = 31,200) = 16.7% X $4,841 = $808.45 X Performance Rating (A 100%, B 80%, C 60%) = Bonus

Sheet Data (hidden)
A1: Number of Stores: | B1: Houston #4 | C1: Month: | D1: Quarter: | E1: Counter: | F1: 2nd Month | G1: Counter 1 | H1: Quarter 1 | K1: CANCELLED?
A2: 4 | B2: Austin | C2: January | D2: Q1 | E2: 0 | F2: =IF(A4=C2,C3,IF(A4=C3,C4,IF(A4=C4,C5,IF(A4=C5,C6,IF(A4=C6,C7,IF(A4=C7,C8,IF(A4=C8,C9,IF(A4=C9,C10,IF(A4=C10,C11,IF(A4=C11,C12,IF(A4=C12,C13,IF(A4=C13,C2)))))))))))) -> April | G2: Austin | H2: =A6 -> Q2
A3: Month Selected: | B3: San Marcos | C3: February | D3: Q2 | E3: Q Count: | F3: 3rd Month | G3: Counter 2 | H3: Quarter 2
A4: March | B4: Houston | C4: March | D4: Q3 | E4: 0 | F4: =IF(A4=C2,C4,IF(A4=C3,C5,IF(A4=C4,C6,IF(A4=C5,C7,IF(A4=C6,C8,IF(A4=C7,C9,IF(A4=C8,C10,IF(A4=C9,C11,IF(A4=C10,C12,IF(A4=C11,C13,IF(A4=C12,C2,IF(A4=C13,C3)))))))))))) -> May | G4: San Marcos | H4: =IF(A6=D2,D3,IF(A6=D3,D4,IF(A6=D4,D5,IF(A6=D5,D2)))) -> Q3
A5: Quarter Selected: | B5: Dallas | C5: April | D5: Q4 | E5: Row Count: | G5: Counter 3 | H5: Quarter 3
A6: Q2 | C6: May | E6: 0 | G6: Dallas | H6: =IF(A6=D2,D4,IF(A6=D3,D5,IF(A6=D4,D2,IF(A6=D5,D3)))) -> Q4
A7: CheckBox Selected: | C7: June | G7: Counter 4 | H7: Quarter 4
A8: qComp | C8: July | G8: Houston | H8: =IF(A6=D2,D5,IF(A6=D3,D2,IF(A6=D4,D3,IF(A6=D5,D4)))) -> Q1
A9: Store Selected: | C9: August | G9: Counter 5 | K9: Instructions:
A10: Dallas | C10: September | K10: Instructions: Welcome to the amazing Crown Trophy comparison form.
C11: October | G11: Counter 6 | K11: Pull Data: | L11: 1.) Select the "Show Form" Report
C12: November | L12: 2.) Next choose the correct store from the dropdown menu
C13: December | G13: Counter 7 | L13: 3.) Check either "Monthly" or "Quarterly" depending on the report you wish to run
L14: 4.) Click on the "Get Data" button and then select the correct report that quickbooks generated
L15: 5.) Now select the next set of data
K16: 6.) Nothing goes here
K17: Creating Charts: | L17: The "Create Chart" macro will create a chart based on a single line item and is meant for the Quarterly tab.
L18: 1.) Import all the data before you create a chart
L19: 2.) Select the row that you would like to create a chart of
L20: 3.) Once the row is selected then click on the "Create Chart" button
L21: 4.) Charts are generated to the right of the projected data and will stack on top of each other.
L22: 5.) To delete the charts, select the "Delete Charts" button which will delete all charts.
